bitfinex-derivatives/quotes_SOLF0:USTF0_20260226
["timestamp","ask_amount","ask_price","bid_price","bid_amount"]
[1772113260676,3.66783368,87.679,87.631,0.88032393]
[1772113261876,3.66783368,87.669,87.619,0.62897187]
[1772113262574,3.66783368,87.659,87.619,0.62897187]
[1772113262771,3.66783368,87.649,87.612,10.2721]
[1772113266883,3.66783368,87.666,87.615,0.54480455]
[1772113267083,3.66783368,87.666,87.621,0.54480455]
[1772113267582,13.93233368,87.679,87.631,10.75857477]
[1772113267972,3.66783368,87.678,87.631,10.75857477]
[1772113268785,3.66783368,87.678,87.638,0.48857477]
[1772113269486,3.66783368,87.678,87.63,2.99775861]
[1772113269785,459.53418736,87.711,87.624,0.66204764]
[1772113269786,3.66783368,87.669,87.624,0.66204764]
[1772113269984,3.66783368,87.669,87.611,0.66204764]
[1772113270985,3.66783368,87.667,87.615,10.2718]
[1772113274282,3.66783368,87.667,87.621,10.271]
[1772113276588,3.66783368,87.659,87.621,10.271]
[1772113276889,3.66783368,87.659,87.612,10.2722]
[1772113278187,3.66783368,87.659,87.618,10.2715]
[1772113279494,2.99829732,87.68,87.631,0.61634252]
[1772113279791,6.666131,87.68,87.631,0.61634252]
[1772113280290,3.66783368,87.679,87.631,0.61634252]
[1772113280888,3.66783368,87.679,87.643,10.2685]
[1772113285092,3.66783368,87.669,87.62,2.99829732]
[1772113285294,3.66783368,87.659,87.617,0.6954083]
[1772113285995,3.66783368,87.659,87.621,10.2711]
[1772113286589,3.66783368,87.659,87.627,10.2704]
[1772113286786,2.99829732,87.67,87.617,0.6954083]
[1772113286993,3.76929868,87.671,87.621,0.69408191]
[1772113287193,3.76929868,87.671,87.639,10.269]
[1772113289199,2.99829732,87.68,87.643,10.2685]
[1772113290892,6.767596,87.68,87.643,10.2685]
[1772113291391,3.76929868,87.679,87.635,10.2694]
[1772113291591,3.76929868,87.669,87.616,0.74762336]
[1772113292995,3.76929868,87.669,87.634,10.2696]
[1772113293300,3.76929868,87.659,87.616,0.74762336]
[1772113293501,3.76929868,87.675,87.621,0.75880993]
[1772113293796,3.76929868,87.675,87.631,0.75880993]
[1772113294190,3.76929868,87.675,87.589,62.48915223]
[1772113294191,2.99829732,87.71,87.661,3.65764929]
[1772113295002,2.99829732,87.7,87.661,3.65764929]
[1772113295305,2.99829732,87.7,87.659,10.2666]
[1772113295897,2.99829732,87.69,87.632,3.65764929]
[1772113296097,2.99829732,87.68,87.632,3.65764929]
[1772113296502,3.76929868,87.685,87.645,10.2683]
[1772113297103,3.76929868,87.685,87.632,3.65764929]
[1772113297501,3.85034262,87.679,87.634,10.2696]
[1772113297701,20.5183,87.724,87.619,3.57906767]
[1772113297702,3.85034262,87.669,87.619,3.57906767]
[1772113298406,2.99829732,87.66,87.619,3.57906767]
[1772113298600,3.85034262,87.659,87.619,3.57906767]
[1772113299003,3.85034262,87.659,87.619,13.85036767]
[1772113300003,3.85034262,87.649,87.612,10.2721]
[1772113301203,6.84863994,87.66,87.619,10.2713]
[1772113301598,3.85034262,87.659,87.619,10.2713]
[1772113304908,3.85034262,87.659,87.625,10.2707]
[1772113306500,2.99829732,87.68,87.621,3.57906767]
[1772113306810,3.85034262,87.679,87.621,3.57906767]
[1772113307212,3.85034262,87.669,87.621,3.57906767]
[1772113308397,3.85034262,87.669,87.578,62.48915223]
[1772113308398,2.99829732,87.65,87.612,10.2722]
[1772113310411,3.85034262,87.654,87.612,10.2722]
[1772113311507,2.99829732,87.65,87.608,3.57906767]
[1772113311702,2.99829732,87.65,87.59,2.99829732]
[1772113311703,3.85034262,87.649,87.591,3.57906767]
[1772113311901,2.99829732,87.64,87.591,3.57906767]
[1772113312909,2.99829732,87.64,87.598,3.57906767]
[1772113313612,3.85034262,87.639,87.598,3.57906767]
[1772113314114,3.85034262,87.639,87.601,10.2734]
[1772113316207,3.77464002,87.674,87.598,3.57906767]
[1772113316410,3.77464002,87.659,87.612,3.86355567]
[1772113317008,3.77464002,87.659,87.615,10.2718]
[1772113317311,3.77464002,87.659,87.612,3.86355567]
[1772113317609,2.99829732,87.65,87.617,10.2716]
[1772113317808,3.77464002,87.649,87.617,10.2716]
[1772113318206,3.77464002,87.649,87.61,10.2723]
[1772113319709,3.77464002,87.649,87.604,3.86355567]
[1772113319710,2.99829732,87.64,87.604,3.86355567]
[1772113320415,2.99829732,87.64,87.605,10.2729]
[1772113320613,10.268,87.648,87.605,10.2729]
[1772113320810,2.99829732,87.66,87.604,3.86355567]
[1772113321014,3.77464002,87.659,87.604,3.86355567]
[1772113321613,3.77464002,87.656,87.616,10.2716]
[1772113324216,3.77464002,87.649,87.609,10.2725]
[1772113324515,3.77464002,87.649,87.604,3.86355567]
[1772113324917,3.77464002,87.649,87.615,10.2718]
[1772113326114,2.99829732,87.65,87.62,10.2712]
[1772113326417,3.77464002,87.666,87.62,3.86355567]
[1772113326616,3.77464002,87.666,87.621,3.86355567]
[1772113327815,6.77293734,87.68,87.621,3.86355567]
[1772113328014,3.77464002,87.679,87.599,20.5473]
[1772113328218,3.77464002,87.669,87.617,3.86355567]
[1772113328810,3.77464002,87.669,87.621,3.86355567]
[1772113329008,3.77464002,87.659,87.608,3.86355567]
[1772113329710,10.268,87.648,87.608,3.86355567]
[1772113331616,3.77464002,87.656,87.608,14.13625567]
[1772113332919,14.04194002,87.654,87.608,14.13625567]
[1772113333119,3.77464002,87.653,87.608,14.13625567]
[1772113333619,3.77464002,87.65,87.608,14.13625567]
[1772113341420,13.26589609,87.66,87.609,3.86355567]
[1772113341610,3.77464002,87.663,87.621,3.86355567]
[1772113342322,3.77464002,87.679,87.633,3.86355567]
[1772113342519,3.77464002,87.677,87.633,3.86355567]
[1772113342823,8.66831665,87.676,87.633,3.86355567]
[1772113343021,8.66831665,87.675,87.633,3.86355567]
[1772113343221,8.66831665,87.674,87.633,3.86355567]
[1772113343422,3.77464002,87.677,87.633,3.86355567]
[1772113343622,8.66877165,87.676,87.633,3.86355567]
[1772113343824,8.66877165,87.675,87.633,3.86355567]
[1772113344021,8.66877165,87.674,87.637,10.2692]
[1772113344223,3.77464002,87.677,87.638,3.86355567]
[1772113345924,3.77464002,87.677,87.64,3.86355567]
[1772113346326,2.99919609,87.7,87.641,3.85057725]
[1772113346529,6.62497691,87.7,87.641,3.85057725]
[1772113346722,3.62578082,87.7,87.656,3.85057725]
[1772113347225,3.62578082,87.7,87.661,3.85057725]
[1772113347924,3.62578082,87.7,87.662,10.2662]
[1772113350226,3.62578082,87.7,87.665,10.2659]
[1772113350628,3.62578082,87.713,87.666,3.85057725]
[1772113350828,3.62578082,87.713,87.676,3.85057725]
[1772113351416,2.99919609,87.7,87.661,3.85057725]
[1772113351621,3.62578082,87.699,87.661,3.85057725]
[1772113353026,3.62578082,87.699,87.661,14.11697725]
[1772113354628,2.99919609,87.71,87.666,3.85057725]
[1772113355228,3.62578082,87.709,87.666,3.85057725]
[1772113356624,3.62578082,87.707,87.666,3.85057725]
[1772113356829,2.99919609,87.7,87.657,3.85057725]
[1772113357528,3.62578082,87.707,87.657,3.85057725]
[1772113359025,3.62578082,87.707,87.664,10.2661]
[1772113359632,3.66865213,87.706,87.664,10.2661]
[1772113362030,3.66865213,87.706,87.665,3.58324666]
[1772113362236,3.66865213,87.706,87.667,10.2657]
[1772113362534,3.66865213,87.706,87.665,3.58324666]
[1772113362932,3.66865213,87.706,87.667,10.2657]
[1772113364936,3.66865213,87.704,87.667,10.2657]
[1772113370238,3.66865213,87.704,87.672,10.2651]
[1772113371839,3.66865213,87.704,87.602,34.23]
[1772113371840,3.66865213,87.69,87.642,3.58324666]
[1772113372037,3.66865213,87.69,87.651,3.58324666]
[1772113372234,2.99919609,87.7,87.651,3.58324666]
[1772113372637,3.66865213,87.702,87.651,3.58324666]
[1772113372838,3.66865213,87.702,87.661,3.58324666]
[1772113373043,3.66865213,87.702,87.663,3.58324666]
[1772113373442,3.66865213,87.714,87.663,3.58324666]
[1772113374031,3.66865213,87.714,87.664,3.58324666]
[1772113374840,13.92975213,87.708,87.665,13.84924666]
[1772113375143,3.66865213,87.707,87.665,13.84924666]
[1772113375744,3.66865213,87.707,87.666,3.58324666]
[1772113377043,3.66865213,87.707,87.667,10.2657]
[1772113378543,3.66865213,87.707,87.667,13.9590634]
[1772113380547,10.2614,87.705,87.667,13.9590634]
[1772113380950,3.83924185,87.705,87.668,3.6933634]
[1772113381146,10.262,87.699,87.668,3.6933634]
[1772113381448,3.83924185,87.698,87.66,2.99919609]
[1772113381652,3.83924185,87.698,87.661,3.6933634]
[1772113382556,3.83924185,87.709,87.661,3.6933634]
[1772113382756,3.83924185,87.709,87.661,13.9597634]
[1772113382952,3.83924185,87.709,87.661,3.6933634]
[1772113383852,10.2617,87.702,87.661,3.6933634]
[1772113385358,14.10094185,87.702,87.661,3.6933634]
[1772113387254,3.83924185,87.699,87.661,3.6933634]
[1772113387556,3.83924185,87.699,87.641,3.6933634]
[1772113388864,2.99919609,87.7,87.64,2.99919609]
[1772113388865,3.83924185,87.689,87.645,3.6933634]
[1772113391169,3.83924185,87.702,87.649,3.6933634]
[1772113391356,8.66452462,87.701,87.661,3.6933634]
[1772113391667,8.66452462,87.7,87.661,3.6933634]
[1772113391867,3.83924185,87.702,87.661,3.6933634]
[1772113392665,3.83924185,87.699,87.651,10.2675]
[1772113393168,3.83924185,87.699,87.651,13.9608634]
[1772113393361,3.83924185,87.699,87.652,3.6933634]
[1772113393769,3.83924185,87.695,87.654,3.6933634]
[1772113394861,3.83924185,87.695,87.656,3.6933634]
[1772113399472,3.83924185,87.706,87.658,3.6933634]
[1772113399777,3.83924185,87.704,87.658,3.6933634]
[1772113400871,3.83924185,87.704,87.662,10.2663]
[1772113401077,3.83924185,87.704,87.663,3.6933634]
[1772113401976,3.83924185,87.704,87.664,13.9593634]
[1772113402374,3.83924185,87.704,87.665,3.6933634]
[1772113403074,3.83924185,87.704,87.666,10.2658]
[1772113405582,3.83924185,87.704,87.666,13.9591634]
[1772113406176,3.83924185,87.704,87.667,3.67832206]
[1772113407882,10.2616,87.703,87.667,3.67832206]
[1772113408484,3.64189606,87.715,87.671,3.67832206]
[1772113408685,18.92770608,87.714,87.671,3.67832206]
[1772113408885,8.66740608,87.713,87.671,3.67832206]
[1772113409084,10.2603,87.714,87.671,3.67832206]
[1772113409882,10.2603,87.714,87.676,10.2647]
[1772113410088,3.64189606,87.708,87.677,3.67832206]
[1772113411287,3.64189606,87.705,87.666,3.67832206]
[1772113412987,3.64189606,87.702,87.666,3.67832206]
[1772113414186,3.64189606,87.702,87.666,13.94422206]
[1772113415780,3.64189606,87.702,87.666,3.67832206]
[1772113418584,3.64189606,87.702,87.665,3.68800183]
[1772113419683,3.75777397,87.719,87.665,3.68800183]
[1772113419885,10.261,87.708,87.669,3.68800183]
[1772113420184,3.75777397,87.707,87.669,3.68800183]
[1772113422485,3.75777397,87.707,87.67,10.2654]
[1772113423689,10.2602,87.715,87.673,3.68800183]
[1772113423890,3.75777397,87.714,87.673,3.68800183]
[1772113424491,17.01469852,87.71,87.674,10.2649]
[1772113424686,3.75777397,87.709,87.674,10.2649]
[1772113425992,6.75389852,87.7,87.668,10.2656]
[1772113426194,3.75777397,87.699,87.668,10.2656]
[1772113427395,3.75777397,87.719,87.663,3.68800183]
[1772113427592,14.01787397,87.716,87.663,3.68800183]
[1772113427892,3.75777397,87.715,87.663,3.68800183]
[1772113428093,3.75777397,87.715,87.673,3.68800183]
[1772113428994,3.75777397,87.713,87.673,3.68800183]
[1772113429887,3.75777397,87.709,87.665,10.266]
[1772113430894,3.75777397,87.708,87.665,10.266]
[1772113431995,3.75777397,87.705,87.665,10.266]
[1772113432697,3.75777397,87.705,87.665,3.68800183]
[1772113433094,3.75777397,87.705,87.654,3.68800183]
[1772113433494,10.2621,87.698,87.661,10.2664]
[1772113433796,10.2621,87.698,87.662,3.68800183]
[1772113436995,3.75777397,87.705,87.668,10.2655]
[1772113437194,3.75777397,87.705,87.668,14.10218723]
[1772113438796,3.75777397,87.705,87.669,3.83668723]
[1772113443495,3.73805808,87.703,87.669,3.83668723]
[1772113445802,3.73805808,87.701,87.661,10.2664]
[1772113446205,3.73805808,87.701,87.662,3.83668723]
[1772113453007,3.73805808,87.699,87.662,3.83668723]
[1772113454004,3.73805808,87.697,87.662,3.83668723]
[1772113454508,3.73805808,87.697,87.65,2.99612455]
[1772113454509,3.73805808,87.697,87.65,6.83281178]
[1772113454708,3.73805808,87.697,87.651,3.83668723]
[1772113455111,3.73805808,87.697,87.67,10.2654]
[1772113455413,3.73805808,87.713,87.671,3.83668723]
[1772113455613,209.12623852,87.818,87.62,34.23]
[1772113455614,3.73805808,87.726,87.681,3.83668723]
[1772113455815,482.91385854,87.744,87.701,3.83668723]
[1772113456503,3.73805808,87.769,87.721,3.83668723]
[1772113456708,3.73805808,87.769,87.731,3.83668723]
[1772113457111,3.73805808,87.769,87.732,3.83668723]
[1772113457319,3.73805808,87.787,87.732,3.83668723]
[1772113457511,3.73805808,87.787,87.688,34.23]
[1772113457512,3.73805808,87.787,87.743,3.83668723]
[1772113457708,3.73805808,87.787,87.683,28.35351147]
[1772113457709,3.73805808,87.804,87.761,3.83668723]
[1772113457913,3.73805808,87.817,87.761,3.83668723]
[1772113458115,21.30387365,87.853,87.711,34.23]
[1772113458116,3.73805808,87.799,87.741,3.83668723]
[1772113458617,2.99515326,87.79,87.741,3.83668723]
[1772113458813,3.73805808,87.789,87.741,3.83668723]
[1772113459111,5.1304501,87.831,87.711,3.83668723]
[1772113459112,3.73805808,87.769,87.711,3.83668723]
[1772113459319,2.99515326,87.76,87.711,3.83668723]
[1772113459516,2.99515326,87.75,87.713,3.83668723]
[1772113460114,3.73805808,87.769,87.721,3.83668723]
[1772113460719,3.73805808,87.769,87.722,10.2592]
[1772113460911,2.99515326,87.76,87.722,10.2592]
[1772113461108,2.99515326,87.76,87.721,3.83668723]
[1772113461508,3.73805808,87.769,87.721,3.83668723]
[1772113463320,2.99515326,87.75,87.708,3.83668723]
[1772113463716,10.2563,87.748,87.708,3.83668723]
[1772113464021,2.99515326,87.74,87.696,3.83668723]
[1772113464210,6.73321134,87.76,87.701,3.83668723]
[1772113464414,6.73321134,87.76,87.7,2.99515326]
[1772113464415,10.2553,87.757,87.705,3.83668723]
[1772113465016,13.99335808,87.757,87.705,3.83668723]
[1772113465721,2.99515326,87.75,87.705,3.83668723]
[1772113465921,20.4984,87.81,87.662,54.7625]
[1772113465922,2.99515326,87.76,87.711,3.7096213]
[1772113466521,2.99515326,87.76,87.715,3.7096213]
[1772113466719,10.254,87.768,87.715,3.7096213]
[1772113466920,2.99515326,87.76,87.715,3.7096213]
[1772113467919,2.99515326,87.76,87.719,3.7096213]
[1772113473532,3.58713865,87.759,87.719,3.7096213]
[1772113478935,3.72866084,87.769,87.722,3.52752684]
[1772113479532,10.2546,87.763,87.722,3.52752684]
[1772113479731,2.99515326,87.79,87.731,3.52752684]
[1772113479935,3.72866084,87.779,87.731,3.52752684]
[1772113480332,3.72866084,87.779,87.683,34.23]
[1772113480333,3.72866084,87.768,87.719,3.52752684]
[1772113481037,3.72866084,87.768,87.681,20.5281]
[1772113481038,3.72866084,87.759,87.706,3.52752684]
[1772113481336,3.72866084,87.759,87.717,10.2598]
[1772113481930,2.99515326,87.77,87.721,3.52752684]
[1772113482128,6.7238141,87.77,87.721,3.52752684]
[1772113482938,10.254,87.768,87.728,3.52752684]
[1772113483237,3.72866084,87.767,87.728,3.52752684]
[1772113483828,13.98386084,87.758,87.711,3.52752684]
[1772113484935,13.98386084,87.758,87.713,13.78782684]
[1772113485135,13.98386084,87.758,87.714,3.52752684]
[1772113486042,2.99515326,87.77,87.725,3.52752684]
[1772113486339,3.72866084,87.769,87.725,3.52752684]
[1772113486936,3.72866084,87.764,87.725,3.52752684]
[1772113489536,3.72866084,87.764,87.726,13.78632684]
[1772113494946,10.2545,87.763,87.726,13.78632684]
[1772113496040,3.60758819,87.76,87.72,13.25465326]
[1772113496240,3.60758819,87.76,87.72,13.78769085]
[1772113496646,3.60758819,87.76,87.681,20.5281]
[1772113496647,3.60758819,87.758,87.708,3.52819085]
[1772113497352,3.60758819,87.772,87.73,2.99515326]
[1772113497655,3.60758819,87.786,87.731,3.52819085]
[1772113498948,3.60758819,87.78,87.737,10.2575]
[1772113499144,3.60758819,87.78,87.737,13.78569085]
[1772113499948,13.86048819,87.777,87.737,13.78569085]
[1772113500349,3.60758819,87.776,87.731,3.52819085]
[1772113501943,10.2536,87.772,87.738,10.2575]
[1772113502455,3.60758819,87.769,87.721,3.52819085]
[1772113503454,3.60758819,87.768,87.724,10.2591]
[1772113505055,3.60758819,87.765,87.724,10.2591]
[1772113506752,10.2544,87.764,87.724,10.2591]
[1772113507055,3.60758819,87.763,87.724,10.2591]
[1772113507956,10.2547,87.762,87.724,10.2591]
[1772113508350,3.60758819,87.76,87.691,3.52819085]
[1772113508550,13.25485326,87.72,87.678,3.52819085]
[1772113508751,2.99515326,87.72,87.678,3.52819085]
[1772113508952,3.60758819,87.729,87.685,10.2636]
[1772113509256,3.60758819,87.729,87.686,3.52819085]
[1772113509656,10.2571,87.742,87.689,3.52819085]
[1772113509856,2.99515326,87.74,87.691,3.52819085]
[1772113510255,3.60758819,87.739,87.691,3.52819085]
[1772113510754,10.2566,87.746,87.697,3.52819085]
[1772113510948,3.60758819,87.747,87.701,3.52819085]
[1772113511152,3.60758819,87.759,87.701,3.52819085]
[1772113511553,3.60758819,87.759,87.711,3.52819085]
[1772113511954,10.2557,87.754,87.714,10.2602]
[1772113512359,10.2557,87.754,87.714,13.78839085]
[1772113515860,10.2559,87.752,87.714,3.52819085]
[1772113521666,3.60758819,87.739,87.691,3.52819085]
[1772113521869,3.60758819,87.729,87.691,3.52819085]
[1772113522363,3.60758819,87.739,87.691,3.52819085]
[1772113523365,3.60758819,87.739,87.696,10.2623]
[1772113523860,10.2583,87.731,87.691,3.52819085]
[1772113525068,3.60758819,87.738,87.693,3.52819085]
[1772113525869,3.60758819,87.738,87.698,10.2621]
[1772113527259,3.76944272,87.736,87.693,3.52819085]
[1772113527661,6.7617178,87.73,87.693,3.52819085]
[1772113528967,3.76944272,87.73,87.693,3.52819085]
[1772113529167,3.76944272,87.73,87.694,10.2626]
[1772113529367,2.99227508,87.74,87.695,3.59021157]
[1772113530068,3.76944272,87.742,87.695,3.59021157]
[1772113530372,2.99227508,87.75,87.701,3.59021157]
[1772113531972,2.99227508,87.75,87.715,10.2601]
[1772113533968,10.2563,87.749,87.711,3.59021157]
[1772113535374,3.76944272,87.746,87.708,10.261]
[1772113536069,3.76944272,87.729,87.68,3.59021157]
[1772113536276,6.7617178,87.72,87.68,3.59021157]
[1772113537571,3.76944272,87.72,87.68,3.59021157]
[1772113537874,13.94664795,87.719,87.68,13.85431157]
[1772113538081,3.68694795,87.719,87.68,13.85431157]
[1772113538469,3.68694795,87.719,87.686,10.2634]
[1772113541674,2.99227508,87.73,87.681,3.83662739]
[1772113541969,2.99227508,87.74,87.691,3.83662739]
[1772113542976,2.99227508,87.74,87.705,10.2613]
[1772113544180,10.2555,87.755,87.709,3.83662739]
[1772113545076,13.94244795,87.755,87.709,3.83662739]
[1772113545274,3.68694795,87.739,87.697,3.83662739]
[1772113545480,2.99227508,87.73,87.697,3.83662739]
[1772113545874,3.68694795,87.729,87.69,10.263]
[1772113546976,3.68694795,87.727,87.69,10.263]
[1772113553383,3.68694795,87.725,87.69,10.263]
[1772113555278,3.68694795,87.725,87.691,3.83662739]
[1772113555482,47.09023314,87.77,87.691,3.83662739]
[1772113555483,3.68694795,87.738,87.7,10.2618]
[1772113557388,3.68694795,87.738,87.707,10.261]
[1772113561087,3.68694795,87.738,87.701,3.63083767]
[1772113562487,2.99227508,87.74,87.704,3.63083767]
[1772113562687,13.97957648,87.749,87.704,3.63083767]
[1772113562688,3.72337648,87.749,87.704,3.63083767]
[1772113563886,3.72337648,87.749,87.715,10.2601]
[1772113564590,36.51958578,87.77,87.721,3.63083767]
[1772113565789,3.72337648,87.769,87.721,3.63083767]
[1772113566580,3.72337648,87.769,87.726,10.2589]
[1772113566784,3.72337648,87.769,87.726,13.88973767]
[1772113566986,36.51958578,87.77,87.731,3.63083767]
[1772113567492,36.51958578,87.77,87.739,10.2573]
[1772113567787,3.72337648,87.769,87.726,3.63083767]
[1772113567988,2.99227508,87.76,87.726,3.63083767]
[1772113569690,2.99227508,87.76,87.73,10.2584]
[1772113570589,3.72337648,87.769,87.73,10.2584]
[1772113571190,2.99227508,87.76,87.73,10.2584]
[1772113571588,3.72337648,87.769,87.73,10.2584]
[1772113576990,3.72337648,87.769,87.734,10.2578]
[1772113579293,3.72337648,87.769,87.72,2.99227508]
[1772113579294,36.51958578,87.77,87.738,3.63083767]
[1772113580197,3.72337648,87.794,87.76,10.2549]
[1772113580496,3.72337648,87.794,87.761,3.63083767]
[1772113581896,3.72337648,87.794,87.763,10.2544]
[1772113582196,3.72337648,87.792,87.751,3.63083767]
[1772113582404,3.72337648,87.789,87.744,10.2567]
[1772113583907,3.72337648,87.786,87.744,10.2567]
[1772113584803,2.99120031,87.78,87.744,10.2567]
[1772113585204,2.99120031,87.78,87.75,10.256]
[1772113585494,3.72337648,87.786,87.75,10.256]
[1772113585695,3.72337648,87.786,87.757,10.2552]
[1772113585901,3.72337648,87.798,87.758,3.63083767]
[1772113587900,3.72337648,87.798,87.767,10.254]
[1772113589803,479.55239493,87.804,87.767,13.75416667]
[1772113590505,2.99120031,87.8,87.767,13.75416667]
[1772113592208,2.99120031,87.8,87.767,3.50016667]
[1772113592410,6.83461165,87.8,87.767,3.50016667]
[1772113592604,3.84341134,87.799,87.74,2.99120031]
[1772113592807,14.09451134,87.793,87.75,10.256]
[1772113593307,3.84341134,87.793,87.756,10.2553]
[1772113594208,2.99120031,87.8,87.762,10.2546]
[1772113594404,3.84341134,87.799,87.762,10.2546]
[1772113596613,3.84341134,87.797,87.755,10.2554]
[1772113597606,6.85632612,87.79,87.755,10.2554]
[1772113598812,3.86512581,87.789,87.755,10.2554]
[1772113599811,3.86512581,87.789,87.757,10.2552]
[1772113600714,479.55239493,87.804,87.756,1.59872059]
[1772113600715,6.85632612,87.8,87.764,10.2544]
[1772113600911,3.86512581,87.799,87.764,10.2544]
[1772113601312,2.99120031,87.8,87.768,1.54803032]
[1772113601512,479.55239493,87.804,87.768,1.54803032]
[1772113602212,2.99120031,87.81,87.771,1.54803032]
[1772113604115,2.99120031,87.81,87.773,10.2534]
[1772113604518,6.85632612,87.81,87.773,10.2534]
[1772113604711,6.85632612,87.81,87.773,11.75727343]
[1772113604912,3.86512581,87.822,87.777,1.50387343]
[1772113605112,2.99120031,87.82,87.777,1.50387343]
[1772113605416,6.85632612,87.82,87.777,11.75677343]
[1772113605616,2.99120031,87.81,87.778,1.52526875]
[1772113606016,2.99120031,87.81,87.781,1.52526875]
[1772113606413,2.99120031,87.81,87.751,1.52526875]
[1772113606711,2.99120031,87.8,87.768,1.52526875]
[1772113606915,2.99120031,87.81,87.768,1.52526875]
[1772113607416,2.99120031,87.81,87.77,1.50759883]
[1772113609019,3.86512581,87.819,87.77,1.50759883]
[1772113609210,3.86512581,87.809,87.77,1.50759883]
[1772113610013,3.86512581,87.809,87.771,1.41635693]
[1772113611921,3.86512581,87.809,87.781,10.2524]
[1772113612121,10.2476,87.823,87.781,10.2524]
[1772113612122,6.85632612,87.82,87.781,10.2524]
[1772113612421,3.86512581,87.819,87.771,1.41635693]
[1772113613123,3.86512581,87.819,87.787,10.2516]
[1772113613920,2.99120031,87.82,87.79,1.51692518]
[1772113614917,36.97036331,87.824,87.794,10.2509]
[1772113615318,36.97036331,87.824,87.795,1.58997109]
[1772113615522,3.86512581,87.844,87.799,1.58997109]
[1772113615719,2.99120031,87.84,87.799,1.58997109]
[1772113616021,3.86512581,87.855,87.799,1.58997109]
[1772113616218,26.94439964,87.85,87.816,1.58929827]
[1772113616524,3.6757585,87.868,87.816,1.58929827]
[1772113617225,3.6757585,87.868,87.821,1.58924983]
[1772113617419,2.99120031,87.87,87.821,1.58924983]
[1772113617726,6.66695881,87.88,87.838,11.88803594]
[1772113618024,3.6757585,87.879,87.838,11.88803594]
[1772113618224,3.6757585,87.879,87.838,1.64233594]
[1772113618522,2.99120031,87.87,87.838,1.64233594]
[1772113618718,3.6757585,87.859,87.811,1.64233594]
[1772113618918,2.99120031,87.85,87.811,1.64233594]
[1772113619314,2.99120031,87.87,87.826,1.64233594]
[1772113619719,2.99120031,87.87,87.767,159.5066]
[1772113619720,3.6757585,87.886,87.831,1.74598632]
[1772113620125,3.6757585,87.886,87.841,1.74598632]
[1772113620326,2.99120031,87.91,87.861,1.74598632]
[1772113620524,3.6757585,87.912,87.861,1.74598632]
[1772113621225,765.18112518,87.916,87.861,1.74598632]
[1772113621425,2.99120031,87.91,87.861,1.74598632]
[1772113621826,2.99120031,87.91,87.869,1.82308033]
[1772113622224,3.6757585,87.899,87.856,1.82308033]
[1772113622427,765.18112518,87.916,87.822,73.22023095]
[1772113622428,3.6757585,87.915,87.861,1.82308033]
[1772113622731,2.99120031,87.91,87.861,1.82308033]
[1772113623127,3.6757585,87.915,87.861,1.82308033]
[1772113623427,2.99120031,87.91,87.861,1.82308033]
[1772113623633,3.6757585,87.915,87.861,1.82308033]
[1772113623830,2.99120031,87.91,87.861,1.82308033]
[1772113624936,2.99120031,87.91,87.865,1.85035243]
[1772113625531,3.6757585,87.915,87.865,1.85035243]
[1772113625735,2.99120031,87.91,87.865,1.85035243]
[1772113625931,2.99120031,87.91,87.86,2.99120031]
[1772113625932,3.6757585,87.915,87.868,1.82201697]
[1772113627036,3.6757585,87.915,87.871,1.82201697]
[1772113627231,765.18112518,87.916,87.881,1.82201697]
[1772113627729,20.4607,87.971,87.823,45.6906262]
[1772113627730,2.99120031,87.95,87.891,2.00598934]
[1772113627934,159.0522,88.019,87.845,159.366]
[1772113627935,3.6757585,87.959,87.911,2.00598934]
[1772113628336,2.99120031,87.95,87.911,2.00598934]
[1772113628541,3.6757585,87.959,87.911,2.00598934]
[1772113630040,3.6757585,87.959,87.911,12.24318934]
[1772113630634,2.99120031,87.95,87.911,12.24318934]
[1772113631132,3.6757585,87.959,87.911,12.24318934]
[1772113631536,2.99120031,87.95,87.911,12.24318934]
[1772113632835,6.66695881,87.95,87.911,2.00598934]
[1772113633243,3.6757585,87.939,87.902,10.2382]
[1772113633540,2.99120031,87.95,87.906,1.78658513]
[1772113634340,3.6757585,87.951,87.906,1.78658513]
[1772113634539,2.99120031,87.95,87.906,1.78658513]
[1772113634738,3.6757585,87.951,87.921,10.2361]
[1772113634942,10.2299,87.974,87.921,10.2361]
[1772113634943,2.99120031,87.96,87.921,10.2361]
[1772113635140,2.99120031,87.96,87.922,1.78658513]
[1772113636447,2.99120031,87.96,87.923,10.2358]
[1772113636641,2.99120031,87.97,87.924,1.78997955]
[1772113637043,3.6757585,87.969,87.924,1.78997955]
[1772113637846,2.99120031,87.96,87.925,10.2356]
[1772113638346,2.99120031,87.96,87.924,1.78997955]
[1772113638347,3.6757585,87.969,87.924,1.78997955]
[1772113638740,3.6757585,87.969,87.934,10.2346]
[1772113639047,2.99120031,87.98,87.935,1.83618768]
[1772113639257,3.6757585,87.999,87.941,1.83618768]
[1772113639644,2.97555224,87.99,87.941,1.83618768]
[1772113640150,3.6757585,87.999,87.941,1.83618768]
[1772113640450,3.6757585,87.999,87.898,159.2695]